Workbook

Sheet Resumo
A1: TOTAL DOS CUSTOS DIRETOS | N1: =FSUP!N32 -> 55634.95
A2: TOTAL DO CUSTOS INDIRETOS | N2: =FSUP!N36 -> 27253.09
A3: TOTAL DA PROPOSTA | N3: =FSUP!N37 -> 82888.04

Sheet FSUP
A3: PROPOSTA FINANCEIRA SUP. E APOIO A FISC. DE OBRA | N3: CODIGO:
N4: FSUP
A5: NOME DA CONSULTORA:
A7: PROJETO: | E7: OBJETO: | N7: EDITAL:
A8: Reforma | E8: Projeto Reforma 9ª SR
A9: SERVIÇOS PAGOS A PREÇO UNITÁRIO
A10: MOBILIZAÇÃO/DESMOBILIZAÇÃO
A11: A1 - MOBILIZAÇÃO (FSUP-IV) | N11: ='FSUP-IV Mobiliz Desmob'!H41 -> 0
A12: A2 - DESMOBILIZAÇÃO (FSUP-IV) | N12: ='FSUP-IV Mobiliz Desmob'!L41 -> 0
A13: A - TOTAL DOS CUSTOS COM MOBILIZAÇÃO E DESMOBILIZAÇÃO | N13: =N11+N12 -> 0
A14: MÃO-DE-OBRA
A15: B1 - TOTAL DE SALÁRIO DA EQUIPE COM VÍNCULO (FSUP-I) | N15: ='FSUP-I EQUIPE TÉCNICA'!L42 -> 37250.94
A16: B2 - TOTAL DE SALÁRIO DO AUTÔNOMO (FSUP-I) | N16: ='FSUP-I EQUIPE TÉCNICA'!M14 -> 0
A17: B - TOTAL DOS CUSTOS DE SALÁRIOS DA EQUIPE | N17: =SUM(N15:O16) -> 37250.94
A18: =CONCATENATE("C1 - ENCARGOS SOCIAiS DE B1 = ", 100*'FSUP-VII Det. Enc. Sociais'!F49,"%DO B1") -> C1 - ENCARGOS SOCIAiS DE B1 = 49,08%DO B1 | N18: =ROUND(N15*'FSUP-VII Det. Enc. Sociais'!$F$49,2) -> 18282.76
A19: C2 - ENCARGOS SOCIAIS DE B2 (20% DO B2) | N19: =ROUND(N16*0.2,2) -> 0
A20: C - TOTAL DOS CUSTOS COM ENCARGOS SOCIAIS | N20: =SUM(N18:O19) -> 18282.76
A21: D1 - CUSTO TOTAL DAS PASSAGENS AÉREAS E TERRESTRES (FSUP-II) | N21: ='FSUP-II VIAGENS'!H32 -> 0
A22: D2 - CUSTO TOTAL DAS DIÁRIAS (FSUP-II) | N22: ='FSUP-II VIAGENS'!M32 -> 0
A23: D - TOTAL DO CUSTO COM VIAGENS | N23: =SUM(N21:O22) -> 0
A25: MANUTENÇÃO OPERACIONAL
A26: 1 - CUSTO DOS VEÍCULOS (FSUP-III, ITEM 1) | N26: ='FSUP-III Manutenção Operac'!I14 -> 0
A27: 2 - CUSTO DA MANUTENÇÃO E ADMINISTRAÇÃO DO ESCRITÓRIO DE APOIO (FSUP-III, ITEM 2) | N27: ='FSUP-III Manutenção Operac'!I25 -> 0
A28: 3 - EQUIPAMENTO (FSUP-III, ITEM 3) | N28: ='FSUP-III Manutenção Operac'!I33 -> 0
A29: 4 - SERVIÇOS GRÁFICOS/COMPUTAÇÃO (FSUP-III, ITEM 4) | N29: ='FSUP-III Manutenção Operac'!I40 -> 101.25
A31: E - TOTAL DOS PREÇOS COM MANUTENÇÃO OPERACIONAL | N31: =SUM(N26:O30) -> 101.25
A32: TOTAL DOS CUSTOS DIRETOS | N32: =SUM(N13+N17+N20+N23+N31) -> 55634.95
A33: =CONCATENATE("F - CUSTOS DE ADMINISTRAÇÃO = ",'FSUP-V Det. custos Adm.'!F38,"% DO B") -> F - CUSTOS DE ADMINISTRAÇÃO = 15% DO B | N33: =ROUND(N17*'FSUP-V Det. custos Adm.'!$F$38/100,2) -> 5587.64
A34: G - REMUNERAÇÃO DA EMPRESA (LUCRO) = (10% DE A + B + C + D + E + F) | N34: =ROUND(0.1*(N13+N17+N20+N23+N31+N33),2) -> 6122.26
A35: =CONCATENATE("H - DESPESAS FISCAIS = (",'FSUP-VI Det. Desp Fiscais'!G29,"% DE (A + B + C + D + E + F + G)") -> H - DESPESAS FISCAIS = (23,08% DE (A + B + C + D + E + F + G) | N35: =ROUND('FSUP-VI Det. Desp Fiscais'!$G$29/100*(N13+N17+N20+N23+N31+N33+N34),2) -> 15543.19
A36: TOTAL DO CUSTOS INDIRETOS | N36: =SUM(N33:O35) -> 27253.09
A37: TOTAL DA PROPOSTA | N37: =N32+N36 -> 82888.04
A38: NOME DO INFORMANTE: | J38: QUALIFICAÇÃO:
A40: ASSINATURA: | N40: DATA:
A42: OBSERVAÇÃO:

Sheet FSUP-I EQUIPE TÉCNICA
A3: SALÁRIOS DA EQUIPE TÉCNICA | L3: CODIGO:
L4: FSUP- I
A5: NOME DA CONSULTORA:
A7: PROJETO: | C7: OBJETO: | L7: EDITAL:
A8: Projeto | C8: Projeto Reforma 9ª SR
A9: EQUIPE TÉCNICA | E9: COMPOSIÇÃO DOS SALÁRIOS POR PROFISSÃO/FUNÇÃO | L9: CUSTOS
E10: SALÁRIO | F10: ENC. | G10: CUSTO | H10: R. EMP. | I10: DESP. | J10: SALÁRIO | K10: HORA | L10: SALÁRIO | M10: SALÁRIO
A11: PROFISSÃO/FUNÇÃO | C11: S | D11: QTD | E11: CATEG. | F11: SOCIAIS | G11: ADM. | H11: LUCRO | I11: FISCAIS | J11: MENSAL | K11: TÉCNICA | L11: B1 | M11: B2
A13: NÍVEL SUPERIOR
A14: Arquiteto | C14: P2 | D14: 1 | E14: 11629.97 | F14: =ROUND(E14*'FSUP-VII Det. Enc. Sociais'!$F$49,2) -> 5707.99 | G14: =ROUND(E14*0.2,2) -> 2325.99 | H14: =ROUND(0.1*(E14+F14+G14),2) -> 1966.4 | I14: =ROUND('FSUP-VI Det. Desp Fiscais'!$G$29/100*(E14+F14+G14+H14),2) -> 4992.28 | J14: =SUM(E14:I14) -> 26622.63 | K14: =ROUND(J14/176,2) -> 151.26 | L14: =ROUND(D14*E14,2) -> 11629.97
A15: Engenheiro Civil | C15: P2 | D15: 0.5 | E15: 11629.97 | F15: =ROUND(E15*'FSUP-VII Det. Enc. Sociais'!$F$49,2) -> 5707.99 | G15: =ROUND(E15*0.2,2) -> 2325.99 | H15: =ROUND(0.1*(E15+F15+G15),2) -> 1966.4 | I15: =ROUND('FSUP-VI Det. Desp Fiscais'!$G$29/100*(E15+F15+G15+H15),2) -> 4992.28 | J15: =SUM(E15:I15) -> 26622.63 | K15: =ROUND(J15/176,2) -> 151.26 | L15: =ROUND(D15*E15,2) -> 5814.99
A16: Engenheiro Eletricista | C16: P2 | D16: 0.5 | E16: 11629.97 | F16: =ROUND(E16*'FSUP-VII Det. Enc. Sociais'!$F$49,2) -> 5707.99 | G16: =ROUND(E16*0.2,2) -> 2325.99 | H16: =ROUND(0.1*(E16+F16+G16),2) -> 1966.4 | I16: =ROUND('FSUP-VI Det. Desp Fiscais'!$G$29/100*(E16+F16+G16+H16),2) -> 4992.28 | J16: =SUM(E16:I16) -> 26622.63 | K16: =ROUND(J16/176,2) -> 151.26 | L16: =ROUND(D16*E16,2) -> 5814.99
A17: Engenheiro Telecomunicações | C17: P2 | D17: 0.5 | E17: 11629.97 | F17: =ROUND(E17*'FSUP-VII Det. Enc. Sociais'!$F$49,2) -> 5707.99 | G17: =ROUND(E17*0.2,2) -> 2325.99 | H17: =ROUND(0.1*(E17+F17+G17),2) -> 1966.4 | I17: =ROUND('FSUP-VI Det. Desp Fiscais'!$G$29/100*(E17+F17+G17+H17),2) -> 4992.28 | J17: =SUM(E17:I17) -> 26622.63 | K17: =ROUND(J17/176,2) -> 151.26 | L17: =ROUND(D17*E17,2) -> 5814.99
A18: Engenheiro Mecânico | C18: P2 | D18: 0.5 | E18: 11629.97 | F18: =ROUND(E18*'FSUP-VII Det. Enc. Sociais'!$F$49,2) -> 5707.99 | G18: =ROUND(E18*0.2,2) -> 2325.99 | H18: =ROUND(0.1*(E18+F18+G18),2) -> 1966.4 | I18: =ROUND('FSUP-VI Det. Desp Fiscais'!$G$29/100*(E18+F18+G18+H18),2) -> 4992.28 | J18: =SUM(E18:I18) -> 26622.63 | K18: =ROUND(J18/176,2) -> 151.26 | L18: =ROUND(D18*E18,2) -> 5814.99
A21: NÍVEL TÉCNICO
A22: Técnico Pleno | C22: T2 | D22: 0.5 | E22: 2298.02 | F22: =ROUND(E22*'FSUP-VII Det. Enc. Sociais'!$F$49,2) -> 1127.87 | G22: =ROUND(E22*0.2,2) -> 459.6 | H22: =ROUND(0.1*(E22+F22+G22),2) -> 388.55 | I22: =ROUND('FSUP-VI Det. Desp Fiscais'!$G$29/100*(E22+F22+G22+H22),2) -> 986.45 | J22: =SUM(E22:I22) -> 5260.49 | K22: =ROUND(J22/176,2) -> 29.89 | L22: =ROUND(D22*E22,2) -> 1149.01
A35: NÍVEL AUXILIAR
A37: Ajudante | C37: T4 | D37: 1 | E37: 1212 | F37: =ROUND(E37*'FSUP-VII Det. Enc. Sociais'!$F$49,2) -> 594.85 | G37: =ROUND(E37*0.2,2) -> 242.4 | H37: =ROUND(0.1*(E37+F37+G37),2) -> 204.93 | I37: =ROUND('FSUP-VI Det. Desp Fiscais'!$G$29/100*(E37+F37+G37+H37),2) -> 520.26 | J37: =SUM(E37:I37) -> 2774.44 | K37: =ROUND(J37/176,2) -> 15.76 | L37: =ROUND(D37*E37,2) -> 1212
A39: APOIO
A42: TOTAIS DOS SALÁRIOS DA EQUIPE | L42: =ROUND(SUM(L13:L41),2) -> 37250.94 | M42: =SUM(M13:M41) -> 0
A43: NOME DO INFORMANTE: | H43: QUALIFICAÇÃO:
A45: ASSINATURA: | L45: DATA:
A47: OBSERVAÇÃO:
A48: 1 - UTILIZAR OS PARÂMETROS DE CLASSIFICAÇÃO INDICADOS NO TSUP- II EQUIPE TÉCNICA
A49: 2- UTILIZAR OS SÍMBOLOS INDICADOS NO TSUP-II EQUIPE TÉCNICA
A50: 3- INDICAR A QUANTIDADE DE HOMENS POR CATEGORIA.
A51: 4- INIDCAR O SALÁRIO BASE DA CATEGORIA
A52: =CONCATENATE("5 - ENC. SOCIAIS, APLICAR NO MÁXIMO 20% PARA AUTÔNOMOS E ",100*'FSUP-VII Det. Enc. Sociais'!F49,"% PARA EMPREG. COM VÍNCULO DETALHAR NO FSUP-VII") -> 5 - ENC. SOCIAIS, APLICAR NO MÁXIMO 20% PARA AUTÔNOMOS E 49,08% PARA EMPREG. COM VÍNCULO DETALHAR NO FSUP-VII
A53: 6- CUSTO DE ADMINISTRAÇÃO, APLICAR NO MÁXIMO 25% SOBRE O SALÁRIO BASE DA CATEGORIA
A54: 7 - REMUN. DA EMPRESA (LUCRO), APLICAR NO MÁXIMO 10% SOBRE O SALÁRIO DA CATEG + ENCARGOS SOCIAIS + CUSTO DE ADM.
A55: 8 - DESP. FISCAIS, APLICAR O DF' CALCULADO NO FSUP-VI SOBRE O SALÁRIO DA CATEG. + ENC. SOCIAIS + CUSTO DE ADM. + LUCRO
A56: 9- PREÇO DO HOMEM MÊS POR CATEGORIA = SOMATÓRIO DOS ITENS (4) + (5) + (6) + (7) +(8)
A57: 10- PREÇO DA HORA TÉCNICA = (9) / 176
A58: 11 - SALÁRIOS DE B1 = SALARIO DOS EMPREGADOS COM VÍNCULO X QTD HOMEM MÊS. EXPORTAR O TOTAL PARA LINHA B1 DO FSUP
A59: 12 - SALÁRIO DE B2 = SALÁRIO DO AUTÔNOMO X QTD HOMEM X MÊS. EXPORTAR O TOTAL PARA A LINHA B2 DO FSUP

Sheet FSUP-II VIAGENS
A3: VIAGENS DA EQUIPE TÉCNICA | N3: CODIGO:
N4: FSUP-II
A5: NOME DA CONSULTORA:
A7: PROJETO: | C7: OBJETO:
A8: Reforma | C8: Projeto Reforma 9ª SR
A9: SIMBOLO | B9: ROTEIRO (ida e volta) | E9: PASSAGENS | L9: DIÁRIAS
E10: A/T | F10: QTD | G10: CUSTO | I10: PREÇO | K10: QTD | L10: CUSTO | N10: PREÇO
G11: UNITÁRIO | H11: TOTAL | I11: UNITÁRIO | J11: TOTAL | L11: UNITÁRIO | M11: TOTAL | N11: UNITÁRIO | O11: TOTAL
A32: TOTAIS DE CUSTOS E DE PREÇOS DE PASSAGENS E DIÁRIAS | H32: =SUM(H12:H31) -> 0 | J32: =SUM(J12:J31) -> 0 | M32: =SUM(M12:M31) -> 0 | O32: =SUM(O12:O31) -> 0
A33: NOME DO INFORMANTE: | G33: QUALIFICAÇÃO:
A35: ASSINATURA: | M35: DATA:
A37: OBSERVAÇÕES:
A38: 1 - VIAGENS DURANTE A EXECUÇÃO DOS SERVIÇOS, INCLUÍNDO REUNIÕES NA ADM. CENTRAL DA CODEVASF
A39: 2 - NÂO INCLUIR VIAGENS COM MOBILIZAÇÃO/DESMOBILIZAÇÃO DA EQUIPE QUE SERÃO CALCULADOS NO PSUP-IV
A40: 3 - AS DIÁRIAS COBREM DESPESAS COM TAXI, ALIMENTAÇÃO E HOSPEDAGEM
A41: 4 - INDICAR (A) PARA AS PASSAGENS AÉREAS E (T) PARA AS TERRESTRES
A42: 5 - CUSTO DO ITEM SEM LUCRO E SEM DESPESAS FISCAIS
A43: 6 - EXPORTAR O TOTAL DO CUSTO COM PASSAGENS E DIÁRIAS, RESPECTIVAMENTE, LINHAS "D1" E "D2" DO PSUP
A44: =CONCATENATE(";6 - PREÇO = CUSTO + LUCRO+ DESPESAS FISCAIS E SERÁ CALCULADO COM A SEGUINTE FORMULA:CUSTO*(1+0,1)*(1+",'FSUP-VI Det. Desp Fiscais'!G29,"%)") -> ;6 - PREÇO = CUSTO + LUCRO+ DESPESAS FISCAIS E SERÁ CALCULADO COM A SEGUINTE FORMULA:CUSTO*(1+0,1)*(1+23,08%)
A45: 7 - OS PREÇOS UNITÁRIOS SERÃO UTILIZADOS PARA FINS DE FATURARAMENTO
A46: 8 - AS PASSAGENS AÉREAS POSSUEM VALOR UNITÁRIO MÉDIO ENTRE OS TRECHOS SDU/BSB/SDU, GRU/BSB/GRU, POA/BSB/POA E SSA/BSB/SSA
A47: 9 - AS PASSAGENS TERRESTRES SÃO COM BASE NO VALOR DA PASSAGEM DA CAPITAL AO INTERIOR DO ESTADO DA BAHIA (MAIOR ESTADO DA ÁREA DE ATUAÇÃO DA CODEVASF)

Sheet FSUP-III Manutenção Operac
A3: MANUTENÇÃO OPERACIONAL | J3: CODIGO:
J4: FSUP-III
A5: NOME DA CONSULTORA:
A7: PROJETO: | C7: OBJETO: | J7: EDITAL:
A8: Reforma | C8: Projeto Reforma 9ª SR
A9: DISCRIMINAÇÃO | F9: UND | G9: QTD | H9: CUSTOS 2 | J9: PREÇOS 3
H10: UNT | I10: TOTAL | J10: UNT | K10: TOTAL
A11: 1 VEÍCULOS
F12: mês | I12: =ROUND(G12*H12,2) -> 0 | J12: =ROUND((1+0.1)*(1+'FSUP-VI Det. Desp Fiscais'!$G$29/100)*H12,2) -> 0 | K12: =ROUND(G12*J12,2) -> 0
F13: mês | I13: =ROUND(G13*H13,2) -> 0 | J13: =ROUND((1+0.1)*(1+'FSUP-VI Det. Desp Fiscais'!$G$29/100)*H13,2) -> 0 | K13: =ROUND(G13*J13,2) -> 0
A14: Total dos custos e dos preços dos veículos | I14: =SUM(I12:I13) -> 0 | K14: =SUM(K12:K13) -> 0
A16: 2 MANUTENÇÃO E ADMINISTRAÇÃO DO ESCRITÓRIO
F17: mês | I17: =ROUND(G17*H17,2) -> 0 | J17: =ROUND((1+0.1)*(1+'FSUP-VI Det. Desp Fiscais'!$G$29/100)*H17,2) -> 0 | K17: =ROUND(G17*J17,2) -> 0
F18: mês | I18: 0 | J18: =ROUND((1+0.1)*(1+'FSUP-VI Det. Desp Fiscais'!$G$29/100)*H18,2) -> 0 | K18: 0
F19: mês | I19: 0 | J19: =ROUND((1+0.1)*(1+'FSUP-VI Det. Desp Fiscais'!$G$29/100)*H19,2) -> 0 | K19: 0
F20: mês | I20: 0 | J20: =ROUND((1+0.1)*(1+'FSUP-VI Det. Desp Fiscais'!$G$29/100)*H20,2) -> 0 | K20: 0
F21: mês | I21: 0 | J21: =ROUND((1+0.1)*(1+'FSUP-VI Det. Desp Fiscais'!$G$29/100)*H21,2) -> 0 | K21: 0
F22: mês | I22: 0 | J22: =ROUND((1+0.1)*(1+'FSUP-VI Det. Desp Fiscais'!$G$29/100)*H22,2) -> 0 | K22: 0
F23: mês | I23: 0 | J23: =ROUND((1+0.1)*(1+'FSUP-VI Det. Desp Fiscais'!$G$29/100)*H23,2) -> 0 | K23: 0
I25: =SUM(I17:I24) -> 0 | K25: =SUM(K17:K24) -> 0
A26: 3 EQUIPAMENTOS
F27: mês | I27: =ROUND(G27*H27,2) -> 0 | J27: =ROUND((1+0.1)*(1+'FSUP-VI Det. Desp Fiscais'!$G$29/100)*H27,2) -> 0 | K27: =ROUND(G27*J27,2) -> 0
F28: mês | I28: =ROUND(G28*H28,2) -> 0 | J28: =ROUND((1+0.1)*(1+'FSUP-VI Det. Desp Fiscais'!$G$29/100)*H28,2) -> 0 | K28: =ROUND(G28*J28,2) -> 0
F29: mês | I29: =ROUND(G29*H29,2) -> 0 | J29: =ROUND((1+0.1)*(1+'FSUP-VI Det. Desp Fiscais'!$G$29/100)*H29,2) -> 0 | K29: =ROUND(G29*J29,2) -> 0
F30: mês | I30: =ROUND(G30*H30,2) -> 0 | J30: =ROUND((1+0.1)*(1+'FSUP-VI Det. Desp Fiscais'!$G$29/100)*H30,2) -> 0 | K30: =ROUND(G30*J30,2) -> 0
F31: mês | I31: =ROUND(G31*H31,2) -> 0 | J31: =ROUND((1+0.1)*(1+'FSUP-VI Det. Desp Fiscais'!$G$29/100)*H31,2) -> 0 | K31: =ROUND(G31*J31,2) -> 0
I33: =SUM(I27:I32) -> 0 | K33: =SUM(K27:K32) -> 0
A34: 4 SERVIÇOS GRÁFICOS
A35: 4.1 Relatório do Contrato (até 200 folhas) | F35: unid. | G35: 1 | H35: 41.25 | I35: =ROUND(G35*H35,2) -> 41.25 | J35: =ROUND((1+0.1)*(1+'FSUP-VI Det. Desp Fiscais'!$G$29/100)*H35,2) -> 55.85 | K35: =ROUND(G35*J35,2) -> 55.85
A36: 4.2 Impressão de Pranchas A1 | F36: unid. | G36: 6 | H36: 10 | I36: =ROUND(G36*H36,2) -> 60 | J36: =ROUND((1+0.1)*(1+'FSUP-VI Det. Desp Fiscais'!$G$29/100)*H36,2) -> 13.54 | K36: =ROUND(G36*J36,2) -> 81.24
A40: Total dos custos e dos preços dos serv. gráficos/computação | I40: =SUM(I35:I39) -> 101.25 | K40: =SUM(K35:K39) -> 137.09
A42: NOME DO INFORMANTE: | G42: QUALIFICAÇÃO:
A44: ASSINATURA: | H44: DATA:
A46: OBSERVAÇÃO:
A47: 1. Aluguel de veículos inclui combustível e manutenção até o limite de 3000km/mês
A48: 2. Custo do item sem lucro e despesas fiscais
A49: =CONCATENATE("3. Preço = custo + lucro + despesas fiscais. Para calcular o preço aplica-se a seguinte fórmula: custo*(1+0,1)*(1+",'FSUP-VI Det. Desp Fiscais'!G29,"%)") -> 3. Preço = custo + lucro + despesas fiscais. Para calcular o preço aplica-se a seguinte fórmula: custo*(1+0,1)*(1+23,08%)
A50: 4. Exportar " total custo" para a linha corresponde no FSUP. Os preços serão aplicados para fins de faturamento

Sheet FSUP-IV Mobiliz Desmob
A3: MOBILIZAÇÃO E DESMOBILIZAÇÃO | M3: CODIGO:
M4: FSUP-IV
A5: NOME DA CONSULTORA:
A7: PROJETO: | C7: OBJETO: | M7: EDITAL:
A8: Reforma | C8: Projeto Reforma 9ª SR
A9: DISCRIMINAÇÃO | D9: SÍMB. | E9: UNID | F9: QTD. | G9: MOBILIZAÇÃO | K9: DESMOBILIZAÇÃO
G10: CUSTO | I10: PREÇO | K10: CUSTO | M10: PREÇO
G11: UNITÁRIO | H11: TOTAL | I11: UNITÁRIO | J11: TOTAL | K11: UNITÁRIO | L11: TOTAL | M11: UNITÁRIO | N11: TOTAL
A12: 1. DESLOCAMENTO DA EQUIPE
N14: =ROUND(F14*M14,2) -> 0
A41: TOTAIS DE CUSTOS E DE PREÇOS DE MOBILIZAÇÃO/DESMOBILIZAÇÃO | H41: =SUM(H12:H40) -> 0 | J41: =SUM(J12:J40) -> 0 | L41: =SUM(L12:L40) -> 0 | N41: =SUM(N12:N40) -> 0
A42: NOME DO INFORMANTE: | G42: QUALIFICAÇÃO:
A44: ASSINATURA: | L44: DATA:
A46: OBS: 1 - Custo do item sem lucro e sem despesas fiscais. Os totais detes deverão ser exportados para o item correspondente no FSUP
A47: 2 - Preço = custo + lucro + despesas fiscais e será calculado com a seguinte fórmula: custo*(1+0,1)*(1+0,1396). O preço será utilizado para fins de faturamento

Sheet FSUP-V Det. custos Adm.
A3: DETALHAMENTO DOS CUSTOS DE ADMINISTRAÇÃO | G3: CODIGO:
G4: FSUP-V
A5: NOME DA CONSULTORA:
A7: PROJETO: | C7: OBJETO: | G7: EDITAL:
A8: Reforma | C8: Projeto Reforma 9ª SR
A9: SEQ. | B9: DISCRIMINAÇÃO | F9: VALORES
F10: % | G10: R$
A11: 1 | B11: Custos da equipe da administração central da empresa consultora(diretoria, pessoal técnico de apoio e pessoal administrativo não diretamente vinculado à prestação dos serviços) | F11: 10 | G11: =ROUND(F11/$F$38*FSUP!N$33,2) -> 3725.09
A12: 2 | B12: Outras despesas que afetam o custo de produção como treinamento, biblioteca, programa de qualidade, auditoria interna e externa | F12: 3 | G12: =ROUND(F12/$F$38*FSUP!N$33,2) -> 1117.53
A13: 3 | B13: Despesas com aluguéis, comunicação, manutenção e transporte não diretamente relacionados com o custo direto dos serviços | F13: 2 | G13: =ROUND(F13/$F$38*FSUP!N$33,2) -> 745.02
B38: TOTAIS DO CUSTO DE ADMINISTRAÇÃO | F38: =SUM(F11:F22) -> 15 | G38: =SUM(G11:G37) -> 5587.64
A40: NOME DO INFORMANTE: | D40: QUALIFICAÇÃO:
A41: ASSINATURA: | F41: DATA:
A42: OBSERVAÇAO:
A43: 1 - RELACIONAR OS CUSTOS DE ADMINISTRAÇÃO COM RESPECTIVOS PERCENTUAIS INCIDENTES NA MÃO -DE-OBRA DOS
A44: SERVIÇOS

Sheet FSUP-VI Det. Desp Fiscais
A3: DETALHAMENTO DAS DESPESAS FISCAIS | H3: CODIGO:
H4: FSUP-VI
A5: NOME DA CONSULTORA:
A7: PROJETO: | C7: OBJETO: | H7: EDITAL:
A8: Reforma | C8: Projeto Reforma 9ª SR
A9: DISCRIMINAÇÃO 1 | F9: VALORES
F10: DF (%) 2 | G10: DF' (%) 3 | H10: R$
A12: 1 - ISS | F12: 5 | G12: =(1/(1-$F$29/100))*F12 -> 6.153846154 | H12: =ROUND(G12/G$29*FSUP!N$35,2) -> 4144.3
A13: 2 - PIS | F13: 1.65 | G13: =(1/(1-$F$29/100))*F13 -> 2.030769231 | H13: =ROUND(G13/G$29*FSUP!N$35,2) -> 1367.62
A14: 3 - COFINS | F14: 7.6 | G14: =(1/(1-$F$29/100))*F14 -> 9.353846154 | H14: =ROUND(G14/G$29*FSUP!N$35,2) -> 6299.33
A15: 4 - CPRB | F15: 4.5 | G15: =(1/(1-$F$29/100))*F15 -> 5.538461538 | H15: =ROUND(G15/G$29*FSUP!N$35,2) -> 3729.87
A29: TOTAIS DE DESPESAS FISCAIS | F29: =SUM(F12:F28) -> 18.75 | G29: =ROUND(SUM(G12:G28),2) -> 23.08 | H29: =SUM(H12:H28) -> 15541.12
A30: NOME DO INFORMANTE: | F30: QUALIFICAÇÃO:
A32: ASSINATURA: | G32: DATA:
A34: Observação:
A35: 1 - DISCRIMINAR OS TRIBUTOS QUE INCIDEM SOBRE OS CUSTOS DA PRESTAÇÃO DOS SERVIÇOS
A36: =CONCATENATE("2 - DF = INDICAR OS % DE CADA TRIBUTO E A SOMA DOS MESMOS (ISS ",F12,"% + PIS 1,65% + COFINS 7,60% = ",F29,"%). ") -> 2 - DF = INDICAR OS % DE CADA TRIBUTO E A SOMA DOS MESMOS (ISS 5% + PIS 1,65% + COFINS 7,60% = 18,75%).
A37: OBS.: foi adotada a alíquota de 5% de ISS praticada em Goiânia para obras e serviços de engenharia.
A39: 3 - AS DESPESAS FISCAIS (DF) INCIDEM SOBRE O TOTAL DA FATURA E NÃO SOBRE OS CUSTOS INCORRIDOS,
A40: DEVENDO SER CALCULADO O DF' APLICANDO-SE A SEGUINTE FÓRMULA:
A41: DF' = { [ 1 / ( 1 - DF) ] - 1 } x 100
A42: =CONCATENATE("DF' = { [ 1 / ( 1 - (",F29,"%) ] - 1 } x 100)") -> DF' = { [ 1 / ( 1 - (18,75%) ] - 1 } x 100)
A43: =CONCATENATE("DF' = (",G29,"% . APLICAR O % ENCONTRADO NA LINHA H DO FSUP PARA CALCULAR AS DESPESAS FISCAIS)") -> DF' = (23,08% . APLICAR O % ENCONTRADO NA LINHA H DO FSUP PARA CALCULAR AS DESPESAS FISCAIS)
A44: O TOTAL CALCULADO NA LINHA "H" DO PFSUP SERÁ IMPORTADO PARA COMPOR ESTE DETALHAMENTO.
A45: O TOTAL CALCULADO NA LINHA "H" DO PFSUP SERÁ IMPORTADO PARA COMPOR ESTE DETALHAMENTO.

Sheet FSUP-VII Det. Enc. Sociais
A3: DETALHAMENTO DOS ENCARGOS SOCIAIS | G3: CODIGO:
G4: FSUP-VII
A5: NOME DA CONSULTORA:
A7: PROJETO: | C7: OBJETO: | G7: EDITAL:
A8: Reforma | C8: Projeto Reforma 9ª SR
A9: DISCRIMINAÇÃO | F9: VALORES
F10: % | G10: R$
A11: A | B11: ENCARGOS SOCIAIS BÁSICOS
A12: A1 | B12: INSS | F12: 0 | G12: =ROUND(F12*'FSUP-I EQUIPE TÉCNICA'!L$42,2) -> 0
A13: A2 | B13: SESI | F13: 0.015 | G13: =ROUND(F13*'FSUP-I EQUIPE TÉCNICA'!L$42,2) -> 558.76
A14: A3 | B14: SENAI | F14: 0.01 | G14: =ROUND(F14*'FSUP-I EQUIPE TÉCNICA'!L$42,2) -> 372.51
A15: A4 | B15: INCRA | F15: 0.002 | G15: =ROUND(F15*'FSUP-I EQUIPE TÉCNICA'!L$42,2) -> 74.5
A16: A5 | B16: SEBRAE | F16: 0.006 | G16: =ROUND(F16*'FSUP-I EQUIPE TÉCNICA'!L$42,2) -> 223.51
A17: A6 | B17: Salário Educação | F17: 0.025 | G17: =ROUND(F17*'FSUP-I EQUIPE TÉCNICA'!L$42,2) -> 931.27
A18: A7 | B18: Seguro contra acidente | F18: 0.03 | G18: =ROUND(F18*'FSUP-I EQUIPE TÉCNICA'!L$42,2) -> 1117.53
A19: A8 | B19: FGTS | F19: 0.08 | G19: =ROUND(F19*'FSUP-I EQUIPE TÉCNICA'!L$42,2) -> 2980.08
A20: A9 | B20: SECONCI | F20: 0.01 | G20: =ROUND(F20*'FSUP-I EQUIPE TÉCNICA'!L$42,2) -> 372.51
A21: SUBTOTAL DE "A" | F21: =ROUND(SUM(F12:F20),4) -> 0.178 | G21: =ROUND(SUM(G12:G20),2) -> 6630.67
A23: B | B23: ENCARGOS SOCIAIS QUE RECEBEM INCIDÊNCIA DE "A"
A24: B1 | B24: Repouso Semanal Remunerado | F24: 0 | G24: =ROUND(F24*'FSUP-I EQUIPE TÉCNICA'!L$42,2) -> 0
A25: B2 | B25: Feriados | F25: 0 | G25: =ROUND(F25*'FSUP-I EQUIPE TÉCNICA'!L$42,2) -> 0
A26: B3 | B26: Auxílio - Enfermidade | F26: 0.0066 | G26: =ROUND(F26*'FSUP-I EQUIPE TÉCNICA'!L$42,2) -> 245.86
A27: B4 | B27: 13º Salário | F27: 0.0833 | G27: =ROUND(F27*'FSUP-I EQUIPE TÉCNICA'!L$42,2) -> 3103
A28: B5 | B28: Licença Paternidade | F28: 0.0006 | G28: =ROUND(F28*'FSUP-I EQUIPE TÉCNICA'!L$42,2) -> 22.35
A29: B6 | B29: Faltas Justificadas | F29: 0.0056 | G29: =ROUND(F29*'FSUP-I EQUIPE TÉCNICA'!L$42,2) -> 208.61
A30: B7 | B30: Dias de Chuvas | F30: 0 | G30: =ROUND(F30*'FSUP-I EQUIPE TÉCNICA'!L$42,2) -> 0
A31: B8 | B31: Auxílio Acidente de Trabalho | F31: 0.0008 | G31: =ROUND(F31*'FSUP-I EQUIPE TÉCNICA'!L$42,2) -> 29.8
A32: B9 | B32: Férias Gozadas | F32: 0.0887 | G32: =ROUND(F32*'FSUP-I EQUIPE TÉCNICA'!L$42,2) -> 3304.16
A33: B10 | B33: Salário Maternidade | F33: 0.0002 | G33: =ROUND(F33*'FSUP-I EQUIPE TÉCNICA'!L$42,2) -> 7.45
A34: SUBTOTAL DE "B" | F34: =ROUND(SUM(F24:F33),4) -> 0.1858 | G34: =ROUND(SUM(G23:G33),2) -> 6921.23
A36: C | B36: ENCARGOS SOCIAIS QUE NÃO RECEBEM INCIDÊNCIA DE "A"
A37: C1 | B37: Aviso prévio Indenizado | F37: 0.044 | G37: =ROUND(F37*'FSUP-I EQUIPE TÉCNICA'!L$42,2) -> 1639.04
A38: C2 | B38: Aviso prévio Trabalhado | F38: 0.001 | G38: =ROUND(F38*'FSUP-I EQUIPE TÉCNICA'!L$42,2) -> 37.25
A39: C3 | B39: Férias Indenizadas | F39: 0.0174 | G39: =ROUND(F39*'FSUP-I EQUIPE TÉCNICA'!L$42,2) -> 648.17
A40: C4 | B40: Depósito Rescisão Sem Justa Causa | F40: 0.0241 | G40: =ROUND(F40*'FSUP-I EQUIPE TÉCNICA'!L$42,2) -> 897.75
A41: C5 | B41: Indenização Adicional | F41: 0.0037 | G41: =ROUND(F41*'FSUP-I EQUIPE TÉCNICA'!L$42,2) -> 137.83
A42: SUBTOTAL DE "C" | F42: =ROUND(SUM(F37:F41),4) -> 0.0902 | G42: =ROUND(SUM(G37:G41),2) -> 3360.04
A44: D | B44: REINCIDÊNCIAS
A45: D1 | B45: Reincidência de "A" sobre "B" | F45: 0.0331 | G45: =ROUND(F45*'FSUP-I EQUIPE TÉCNICA'!L$42,2) -> 1233.01
A46: D2 | B46: Reincidência de "A" sobre Aviso prévio Trabalhado e FGTS sobre Aviso prévio Indenizado | F46: 0.0037 | G46: =ROUND(F46*'FSUP-I EQUIPE TÉCNICA'!L$42,2) -> 137.83
A47: SUBTOTAL DE "D" | F47: =SUM(F45:F46) -> 0.0368 | G47: =ROUND(SUM(G45:G46),2) -> 1370.84
A49: TOTAIS DE ENCARGOS SOCIAIS | F49: =ROUND(F21+F34+F42+F47,4) -> 0.4908 | G49: =ROUND(G21+G34+G42+G47,2) -> 18282.78
A50: NOME DO INFORMANTE: | D50: QUALIFICAÇÃO:
A52: ASSINATURA: | F52: DATA:
A54: Observação:
A55: 1 - DISCRIMINAR OS ENCARGOS SOCIAIS COM SEUS RESPECTIVOS PERCENTUAS TOTALIZANDO OS MESMOS.
A56: 2 - O % TOTAL SERÁ APLICADO PARA CÁLCULAR OS E. SOCIAIS INCIDENTES NA MÃO-DE-OBRA COM VÍNCULO, LINHA "B1" DO FSUP

Sheet Memoria_Cálculo
A1: Memória de Cálculo Equipe Técnica
A2: Atividades e Prazos
A4: Profissional | B4: Quantidade | C4: Prazo Dias | D4: Prazo Mês | E4: Atividades
A5: Arquiteto | B5: 1 | C5: 30 | D5: 1 | E5: Coordenar o contrato, elaborar projeto arquitetônico, compatibilizar os projetos elétrico (lógico e telefônico), estrutural, hidrosanitário, incêndio, paisagístico; elaborar o memorial descritivo.
A6: Eng. Civil | B6: 1 | C6: 15 | D6: 0.5 | E6: Avaliar a situação do telhado e, eventualmente, elaborar projeto de adequação. Elaborar adequação do projeto hidrosanitário. Avaliar possibilidade de instalação de elevador/cápsula e, eventualmente, elaboar projeto de adequação estrutural.
A7: Eng. Eletricista | B7: 1 | C7: 15 | D7: 0.5 | E7: Avalair projeto elétrico existente e necessidade de adequação às demandas dos atuais equipamentos. Elaborar projeto de rede lógica, telefônica e circuito de TV/Sistema de Segurança.
A8: Eng. Mecânico | B8: 1 | C8: 15 | D8: 0.5 | E8: Avaliar viablidade de recuperação/reforma do Sistema de Ar Condicionado Central ou instalação de outro sistema, avaliar a possibilidade de instalação de elevador/cápsula e, eventualmente, elaborar projeto de instalação.
A9: Tecnico Pleno (Cadista) | B9: 1 | C9: 15 | D9: 0.5 | E9: Desenhar as Plantas/Projetos.
A10: Ajudante | B10: 2 | C10: 15 | D10: 1 | E10: Apoiar a equipe técnica de Arquitetura e Engenharia nos levantamentos.
